[Event "*** Titled Tuesday Blitz"]
[Site "Chess.com"]
[Date "2020.05.05"]
[Round "6"]
[White "picturesquecheck"]
[Black "Angel_Hranitel_37"]
[Result "0-1"]
[WhiteElo "2084"]
[BlackElo "2379"]
[TimeControl "180+1"]
[EndTime "11:11:17 PDT"]
[Termination "Angel_Hranitel_37 won by resignation"]

1. e4 {[%clk 0:03:00.9]} 1... c5 {[%clk 0:02:59.8]} 2. Nf3 {[%clk 0:03:00.6]}
2... e6 {[%clk 0:02:59.8]} 3. d4 {[%clk 0:02:59.1]} 3... cxd4 {[%clk 0:03:00.7]}
4. Nxd4 {[%clk 0:02:59.6]} 4... Nf6 {[%clk 0:03:01.4]} 5. Nc3 {[%clk 0:02:59.5]}
5... Nc6 {[%clk 0:03:02]} 6. Ndb5 {[%clk 0:02:57.6]} 6... Bc5 {[%clk 0:03:02.4]}
7. Bf4 {[%clk 0:02:56.7]} 7... O-O {[%clk 0:03:01.9]} 8. Bc7 {[%clk 0:02:55.3]}
8... Qe7 {[%clk 0:03:02.3]} 9. Bd6 {[%clk 0:02:55]} 9... Bxd6 {[%clk 0:03:02.4]}
10. Qxd6 {[%clk 0:02:54.9]} 10... Qd8 {[%clk 0:03:03]} 11. O-O-O {[%clk
0:02:38.4]} 11... a6 {[%clk 0:03:01.6]} 12. Nd4 {[%clk 0:02:32.7]} 12... Ne7
{[%clk 0:03:01.9]} 13. Bd3 {[%clk 0:02:24]} 13... b5 {[%clk 0:01:21.3]} 14. f3
{[%clk 0:02:11.9]} 14... Bb7 {[%clk 0:01:20.1]} 15. g4 {[%clk 0:02:08.1]} 15...
Ne8 {[%clk 0:01:15]} 16. Qg3 {[%clk 0:02:05.7]} 16... b4 {[%clk 0:01:14.9]} 17.
Nce2 {[%clk 0:02:03.9]} 17... Qa5 {[%clk 0:01:14.8]} 18. Kb1 {[%clk 0:02:02.4]}
18... d6 {[%clk 0:01:14.9]} 19. Nb3 {[%clk 0:02:02.3]} 19... Qb6 {[%clk
0:01:11.3]} 20. g5 {[%clk 0:02:02]} 20... a5 {[%clk 0:01:10.9]} 21. Qg1 {[%clk
0:01:53.5]} 21... Qc7 {[%clk 0:01:05.4]} 22. h4 {[%clk 0:01:49.9]} 22... a4
{[%clk 0:01:05.5]} 23. Nbd4 {[%clk 0:01:49.7]} 23... b3 {[%clk 0:01:02.2]} 24.
cxb3 {[%clk 0:01:49.2]} 24... axb3 {[%clk 0:00:59.8]} 25. a3 {[%clk 0:01:49.3]}
25... Qa5 {[%clk 0:00:57.4]} 26. Qe1 {[%clk 0:01:34.7]} 26... Qe5 {[%clk
0:00:32.5]} 27. f4 {[%clk 0:01:25.4]} 27... Qc5 {[%clk 0:00:32.6]} 28. Nxb3
{[%clk 0:01:18]} 28... Qe3 {[%clk 0:00:31.5]} 29. Qd2 {[%clk 0:01:11.6]} 29...
Qb6 {[%clk 0:00:21.5]} 30. Qb4 {[%clk 0:01:10.9]} 30... Qxb4 {[%clk 0:00:18.2]}
31. axb4 {[%clk 0:01:10.8]} 31... e5 {[%clk 0:00:15.9]} 32. Na5 {[%clk
0:01:08.7]} 32... Rb8 {[%clk 0:00:11.2]} 33. f5 {[%clk 0:01:03.3]} 33... Nc6
{[%clk 0:00:11.3]} 34. Nxb7 {[%clk 0:01:00.4]} 34... Rxb7 {[%clk 0:00:10.7]} 35.
b5 {[%clk 0:01:00.9]} 35... Na7 {[%clk 0:00:11.3]} 36. Nc3 {[%clk 0:01:00.7]}
36... Nc7 {[%clk 0:00:11.9]} 37. Kc2 {[%clk 0:00:57.3]} 37... Ncxb5 {[%clk
0:00:11.8]} 38. Bxb5 {[%clk 0:00:56.4]} 38... Nxb5 {[%clk 0:00:12]} 39. Nxb5
{[%clk 0:00:54.1]} 39... Rxb5 {[%clk 0:00:12.9]} 40. Rxd6 {[%clk 0:00:52.5]}
40... Rc8+ {[%clk 0:00:13.4]} 41. Kb1 {[%clk 0:00:49.4]} 41... Rcb8 {[%clk
0:00:13.6]} 42. Rd2 {[%clk 0:00:45.3]} 42... Rb4 {[%clk 0:00:13.9]} 43. Re1
{[%clk 0:00:43.3]} 43... h6 {[%clk 0:00:09.3]} 44. g6 {[%clk 0:00:42]} 44...
fxg6 {[%clk 0:00:08.9]} 45. fxg6 {[%clk 0:00:42.5]} 45... Kf8 {[%clk 0:00:09]}
46. Rf1+ {[%clk 0:00:38.5]} 46... Ke8 {[%clk 0:00:08.9]} 47. Rf7 {[%clk
0:00:38.1]} 47... Rxe4 {[%clk 0:00:08.8]} 48. Rxg7 {[%clk 0:00:37.7]} 48... Re1+
{[%clk 0:00:09.1]} 49. Kc2 {[%clk 0:00:37.8]} 49... Rc8+ {[%clk 0:00:09.5]} 50.
Kb3 {[%clk 0:00:35.6]} 50... Rb8+ {[%clk 0:00:09.9]} 51. Kc4 {[%clk 0:00:34.7]}
51... Rc1+ {[%clk 0:00:10.2]} 52. Kd3 {[%clk 0:00:32.1]} 52... Rd8+ {[%clk
0:00:08.2]} 53. Ke2 {[%clk 0:00:31.6]} 53... Rxd2+ {[%clk 0:00:08.4]} 54. Kxd2
{[%clk 0:00:31.6]} 54... Rh1 {[%clk 0:00:09]} 55. Rb7 {[%clk 0:00:24.1]} 55...
Rxh4 {[%clk 0:00:09.1]} 56. g7 {[%clk 0:00:24.3]} 56... Rg4 {[%clk 0:00:09.1]}
57. Ke3 {[%clk 0:00:24.6]} 57... h5 {[%clk 0:00:08.4]} 58. Kf3 {[%clk
0:00:24.6]} 58... e4+ {[%clk 0:00:08.8]} 59. Ke3 {[%clk 0:00:23.3]} 59... h4
{[%clk 0:00:09]} 60. Rb8+ {[%clk 0:00:19]} 60... Kf7 {[%clk 0:00:09]} 61. Rb7+
{[%clk 0:00:19.2]} 61... Kg8 {[%clk 0:00:08.8]} 62. Rb5 {[%clk 0:00:10.4]} 62...
Kxg7 {[%clk 0:00:04.7]} 63. Rh5 {[%clk 0:00:10.2]} 63... Kg6 {[%clk 0:00:05.2]}
64. Rh8 {[%clk 0:00:10.1]} 64... Kg7 {[%clk 0:00:05.8]} 65. Rh5 {[%clk
0:00:09.9]} 65... Rg3+ {[%clk 0:00:04.8]} 66. Kxe4 {[%clk 0:00:09.3]} 66... h3
{[%clk 0:00:05.4]} 67. Kf4 {[%clk 0:00:07.1]} 67... Rb3 {[%clk 0:00:05.9]} 68.
Kg4 {[%clk 0:00:07.2]} 68... Rxb2 {[%clk 0:00:06.1]} 69. Rxh3 {[%clk 0:00:07.2]}
69... Kg6 {[%clk 0:00:06.5]} 70. Kg3 {[%clk 0:00:07.2]} 70... Rb4 {[%clk
0:00:07.4]} 71. Rh4 {[%clk 0:00:06]} 71... Rb3+ {[%clk 0:00:07.4]} 72. Kg2
{[%clk 0:00:06.3]} 72... Kg5 {[%clk 0:00:08.3]} 73. Rh3 {[%clk 0:00:06.5]} 73...
Rb2+ {[%clk 0:00:08.6]} 74. Kf1 {[%clk 0:00:06.4]} 74... Kg4 {[%clk 0:00:09.5]}
75. Rc3 {[%clk 0:00:06.4]} 75... Kf4 {[%clk 0:00:09.6]} 76. Ke1 {[%clk
0:00:05.6]} 76... Ra2 {[%clk 0:00:09.2]} 77. Kd1 {[%clk 0:00:05.8]} 77... Ke4
{[%clk 0:00:09.7]} 78. Kc1 {[%clk 0:00:06.1]} 78... Rh2 {[%clk 0:00:10.1]} 79.
Rg3 {[%clk 0:00:05.8]} 79... Rf2 {[%clk 0:00:09.9]} 80. Ra3 {[%clk 0:00:05]}
80... Kd4 {[%clk 0:00:10.4]} 81. Kb1 {[%clk 0:00:04.5]} 81... Kc4 {[%clk
0:00:10.8]} 82. Rh3 {[%clk 0:00:04.1]} 82... Rg2 {[%clk 0:00:11]} 83. Rh4+
{[%clk 0:00:04.4]} 83... Kd3 {[%clk 0:00:11.1]} 84. Rh3+ {[%clk 0:00:05.3]}
84... Kd2 {[%clk 0:00:11.6]} 85. Rh4 {[%clk 0:00:04.9]} 85... Rg6 {[%clk
0:00:11.7]} 86. Rd4+ {[%clk 0:00:04.6]} 86... Kc3 {[%clk 0:00:12.2]} 87. Rh4
{[%clk 0:00:04.4]} 87... Rg1+ {[%clk 0:00:12.3]} 88. Ka2 {[%clk 0:00:04.2]}
88... Rg2+ {[%clk 0:00:13.2]} 89. Ka3 {[%clk 0:00:03.8]} 89... Rg8 {[%clk
0:00:12.8]} 90. Rh3+ {[%clk 0:00:04]} 90... Kd4 {[%clk 0:00:13.4]} 91. Rh4+
{[%clk 0:00:04.9]} 91... Ke3 {[%clk 0:00:13.9]} 92. Rh5 {[%clk 0:00:05.8]} 92...
Kf2 {[%clk 0:00:14.2]} 93. Kb4 {[%clk 0:00:06.2]} 93... Rg4+ {[%clk 0:00:14.4]}
94. Kb5 {[%clk 0:00:06.4]} 94... Rf4 {[%clk 0:00:14.3]} 95. Rc5 {[%clk
0:00:07.3]} 95... Rf3 {[%clk 0:00:13.7]} 96. Rc4 {[%clk 0:00:08.2]} 96... Ke3
{[%clk 0:00:14.1]} 97. Rb4 {[%clk 0:00:08.8]} 97... Kd2 {[%clk 0:00:14.2]} 98.
Rb2+ {[%clk 0:00:09]} 98... Kc3 {[%clk 0:00:14.6]} 99. Ra2 {[%clk 0:00:09.3]}
99... Rf5+ {[%clk 0:00:15]} 100. Kc6 {[%clk 0:00:09.5]} 100... Kb3 {[%clk
0:00:15.4]} 101. Re2 {[%clk 0:00:09]} 101... Kc4 {[%clk 0:00:15.3]} 102. Kd7
{[%clk 0:00:09.2]} 102... Rd5+ {[%clk 0:00:14.7]} 103. Ke6 {[%clk 0:00:08.7]}
103... Rh5 {[%clk 0:00:15.6]} 104. Re4+ {[%clk 0:00:08.7]} 104... Kc5 {[%clk
0:00:15.8]} 105. Re1 {[%clk 0:00:08.8]} 105... Rh8 {[%clk 0:00:15.9]} 106. Kf7
{[%clk 0:00:08.7]} 106... Ra8 {[%clk 0:00:15.4]} 107. Kg7 {[%clk 0:00:09]}
107... Kd5 {[%clk 0:00:15.4]} 108. Kg6 {[%clk 0:00:09.3]} 108... Ra2 {[%clk
0:00:15.6]} 109. Kg7 {[%clk 0:00:09.4]} 109... Kd6 {[%clk 0:00:15.2]} 110. Kf7
{[%clk 0:00:09.5]} 110... Kd7 {[%clk 0:00:15.7]} 111. Rd1+ {[%clk 0:00:08.1]}
111... Kc7 {[%clk 0:00:15.8]} 112. Ke6 {[%clk 0:00:09]} 112... Re2+ {[%clk
0:00:16.1]} 113. Kf7 {[%clk 0:00:09.1]} 113... Kb7 {[%clk 0:00:16.2]} 114. Kf8
{[%clk 0:00:08.8]} 114... Kc7 {[%clk 0:00:16.8]} 115. Kf7 {[%clk 0:00:09.1]}
115... Kb7 {[%clk 0:00:17.7]} 116. Kf8 {[%clk 0:00:09.6]} 116... Rd2 {[%clk
0:00:18.3]} 117. Kf7 {[%clk 0:00:10.1]} 117... Rxd1 {[%clk 0:00:19.2]} 0-1

[Event "*** Titled Tuesday Blitz"]
[Site "Chess.com"]
[Date "2020.05.05"]
[Round "7"]
[White "Bacyanide"]
[Black "barbara25"]
[Result "1-0"]
[WhiteElo "2421"]
[BlackElo "2220"]
[TimeControl "180+1"]
[EndTime "11:12:48 PDT"]
[Termination "Bacyanide won by checkmate"]

1. d4 {[%clk 0:03:00.9]} 1... Nf6 {[%clk 0:02:59.5]} 2. Nf3 {[%clk 0:03:01.4]}
2... e6 {[%clk 0:02:59.8]} 3. Bf4 {[%clk 0:03:01.8]} 3... d5 {[%clk 0:02:59.5]}
4. e3 {[%clk 0:03:02.2]} 4... Bd6 {[%clk 0:02:59.7]} 5. Bg3 {[%clk 0:03:01.3]}
5... O-O {[%clk 0:02:59.6]} 6. Nbd2 {[%clk 0:02:56.7]} 6... b6 {[%clk
0:02:59.5]} 7. c3 {[%clk 0:02:54.8]} 7... c5 {[%clk 0:02:59.5]} 8. Bd3 {[%clk
0:02:55]} 8... Ba6 {[%clk 0:02:59.3]} 9. Bxa6 {[%clk 0:02:54.4]} 9... Nxa6
{[%clk 0:02:58.9]} 10. Qe2 {[%clk 0:02:55.3]} 10... Nc7 {[%clk 0:02:58.8]} 11.
Rd1 {[%clk 0:02:52.5]} 11... Qe7 {[%clk 0:02:56.9]} 12. dxc5 {[%clk 0:02:42.3]}
12... bxc5 {[%clk 0:02:56.2]} 13. e4 {[%clk 0:02:42.6]} 13... Bxg3 {[%clk
0:02:52.5]} 14. hxg3 {[%clk 0:02:42.5]} 14... dxe4 {[%clk 0:02:48.5]} 15. Nxe4
{[%clk 0:02:43.4]} 15... Nxe4 {[%clk 0:02:46.3]} 16. Qxe4 {[%clk 0:02:44.3]}
16... Rad8 {[%clk 0:02:46.3]} 17. Qxh7# {[%clk 0:02:44]} 1-0

[Event "*** Titled Tuesday Blitz"]
[Site "Chess.com"]
[Date "2020.05.05"]
[Round "7"]
[White "top_bu_tz"]
[Black "dopolian"]
[Result "0-1"]
[WhiteElo "2211"]
[BlackElo "2393"]
[TimeControl "180+1"]
[EndTime "11:13:12 PDT"]
[Termination "dopolian won by resignation"]

1. e4 {[%clk 0:03:00.9]} 1... e5 {[%clk 0:02:59.1]} 2. Nf3 {[%clk 0:03:00.5]}
2... Nc6 {[%clk 0:02:59.3]} 3. Bb5 {[%clk 0:03:00.5]} 3... a6 {[%clk 0:02:59.3]}
4. Ba4 {[%clk 0:03:00.3]} 4... Nf6 {[%clk 0:02:59.1]} 5. O-O {[%clk 0:02:59.3]}
5... Nxe4 {[%clk 0:02:59]} 6. d4 {[%clk 0:02:55.2]} 6... b5 {[%clk 0:02:58.9]}
7. Bb3 {[%clk 0:02:54.9]} 7... d5 {[%clk 0:02:59.3]} 8. dxe5 {[%clk 0:02:54]}
8... Be6 {[%clk 0:02:59.8]} 9. c3 {[%clk 0:02:53.8]} 9... Bc5 {[%clk 0:02:58]}
10. a4 {[%clk 0:02:49.4]} 10... Rb8 {[%clk 0:02:53.3]} 11. axb5 {[%clk
0:02:48.6]} 11... axb5 {[%clk 0:02:54.2]} 12. Qc2 {[%clk 0:02:37.4]} 12... O-O
{[%clk 0:02:51.7]} 13. Rd1 {[%clk 0:02:35.2]} 13... Nxf2 {[%clk 0:02:46.6]} 14.
Rd4 {[%clk 0:02:29.2]} 14... Ne4 {[%clk 0:02:38.5]} 0-1

[Event "*** Titled Tuesday Blitz"]
[Site "Chess.com"]
[Date "2020.05.05"]
[Round "7"]
[White "GiorgianBarbosa"]
[Black "vangulio"]
[Result "0-1"]
[WhiteElo "2363"]
[BlackElo "2537"]
[TimeControl "180+1"]
[EndTime "11:13:42 PDT"]
[Termination "vangulio won by resignation"]

1. c4 {[%clk 0:03:00.9]} 1... Nf6 {[%clk 0:02:51.5]} 2. g3 {[%clk 0:03:00.3]}
2... g6 {[%clk 0:02:50.6]} 3. Bg2 {[%clk 0:03:00.9]} 3... Bg7 {[%clk 0:02:51.1]}
4. Nc3 {[%clk 0:03:00.3]} 4... O-O {[%clk 0:02:50.5]} 5. e4 {[%clk 0:03:01]}
5... c5 {[%clk 0:02:50.2]} 6. Nge2 {[%clk 0:03:00.9]} 6... Nc6 {[%clk
0:02:50.2]} 7. O-O {[%clk 0:03:01.5]} 7... a6 {[%clk 0:02:44.6]} 8. d3 {[%clk
0:03:01]} 8... b5 {[%clk 0:02:43.7]} 9. cxb5 {[%clk 0:03:01]} 9... axb5 {[%clk
0:02:44]} 10. Nxb5 {[%clk 0:03:01.7]} 10... Ba6 {[%clk 0:02:44.3]} 11. Nbc3
{[%clk 0:03:02.2]} 11... Nb4 {[%clk 0:02:44.4]} 12. e5 {[%clk 0:02:49.8]} 12...
Ng4 {[%clk 0:02:43.9]} 13. Bxa8 {[%clk 0:02:47.4]} 13... Qxa8 {[%clk 0:02:44.8]}
14. Nf4 {[%clk 0:02:40.9]} 14... Nxe5 {[%clk 0:02:41.4]} 15. Ne4 {[%clk
0:02:22.4]} 15... Nbxd3 {[%clk 0:02:36.7]} 16. Nxd3 {[%clk 0:02:18.8]} 16...
Bxd3 {[%clk 0:02:36.2]} 17. f4 {[%clk 0:02:10.3]} 17... Bxf1 {[%clk 0:02:31.5]}
0-1

[Event "*** Titled Tuesday Blitz"]
[Site "Chess.com"]
[Date "2020.05.05"]
[Round "7"]
[White "Gennady_Kozlov"]
[Black "Khamrakulov_Djurabek"]
[Result "0-1"]
[WhiteElo "2584"]
[BlackElo "2812"]
[TimeControl "180+1"]
[EndTime "11:14:12 PDT"]
[Termination "Khamrakulov_Djurabek won by resignation"]

1. b3 {[%clk 0:03:00.9]} 1... e5 {[%clk 0:02:58.9]} 2. Bb2 {[%clk 0:03:01.8]}
2... Nc6 {[%clk 0:02:59.2]} 3. e3 {[%clk 0:03:02.1]} 3... Nf6 {[%clk 0:02:58.8]}
4. f4 {[%clk 0:03:02]} 4... exf4 {[%clk 0:02:46.2]} 5. exf4 {[%clk 0:03:02.9]}
5... d5 {[%clk 0:02:46.4]} 6. Nf3 {[%clk 0:03:01.9]} 6... Bg4 {[%clk 0:02:45.8]}
7. Bb5 {[%clk 0:03:00.9]} 7... Qd6 {[%clk 0:02:45.6]} 8. O-O {[%clk 0:02:58.3]}
8... Qc5+ {[%clk 0:02:42.4]} 9. Bd4 {[%clk 0:02:38.9]} 9... Qxb5 {[%clk
0:02:28.9]} 10. Nc3 {[%clk 0:02:38.4]} 10... Qb4 {[%clk 0:02:25.1]} 11. Re1+
{[%clk 0:02:32]} 11... Be7 {[%clk 0:02:10.7]} 12. Bxf6 {[%clk 0:02:11.2]} 12...
gxf6 {[%clk 0:02:11.6]} 13. h3 {[%clk 0:02:08.5]} 13... Bxf3 {[%clk 0:02:04.4]}
14. Qxf3 {[%clk 0:02:09.4]} 14... O-O-O {[%clk 0:01:57.4]} 15. Re2 {[%clk
0:02:05.2]} 0-1

[Event "*** Titled Tuesday Blitz"]
[Site "Chess.com"]
[Date "2020.05.05"]
[Round "7"]
[White "chenxiaoyuer"]
[Black "Nellichka"]
[Result "1-0"]
[WhiteElo "2215"]
[BlackElo "2079"]
[TimeControl "180+1"]
[EndTime "11:14:22 PDT"]
[Termination "chenxiaoyuer won by resignation"]

1. e4 {[%clk 0:03:00.9]} 1... e6 {[%clk 0:02:58.7]} 2. d4 {[%clk 0:03:00.4]}
2... d5 {[%clk 0:02:57.1]} 3. Nd2 {[%clk 0:02:59.6]} 3... h6 {[%clk 0:02:55.2]}
4. Ngf3 {[%clk 0:02:56.4]} 4... Nf6 {[%clk 0:02:53.2]} 5. e5 {[%clk 0:02:56.1]}
5... Nfd7 {[%clk 0:02:50.6]} 6. Bd3 {[%clk 0:02:55.9]} 6... c5 {[%clk 0:02:49]}
7. c3 {[%clk 0:02:55.5]} 7... Nc6 {[%clk 0:02:48.7]} 8. O-O {[%clk 0:02:54.8]}
8... Qb6 {[%clk 0:02:47.9]} 9. Re1 {[%clk 0:02:48.2]} 9... cxd4 {[%clk
0:02:42.9]} 10. cxd4 {[%clk 0:02:47.6]} 10... Nxd4 {[%clk 0:02:40.9]} 11. Nxd4
{[%clk 0:02:46.6]} 11... Qxd4 {[%clk 0:02:39.9]} 12. Nf3 {[%clk 0:02:46.5]}
12... Qb6 {[%clk 0:02:35]} 13. Qc2 {[%clk 0:02:18.2]} 13... Qc6 {[%clk
0:02:27.6]} 14. Qe2 {[%clk 0:02:15.2]} 14... a6 {[%clk 0:02:21.7]} 15. Be3
{[%clk 0:02:07.5]} 15... Nc5 {[%clk 0:02:18.6]} 16. Rac1 {[%clk 0:02:04.9]}
16... Qb6 {[%clk 0:02:07.4]} 17. Qc2 {[%clk 0:02:02]} 1-0

[Event "*** Titled Tuesday Blitz"]
[Site "Chess.com"]
[Date "2020.05.05"]
[Round "7"]
[White "Belka1989"]
[Black "Klavdia_Nik"]
[Result "1-0"]
[WhiteElo "2113"]
[BlackElo "1944"]
[TimeControl "180+1"]
[EndTime "11:14:36 PDT"]
[Termination "Belka1989 won by resignation"]

1. e4 {[%clk 0:03:00.9]} 1... e6 {[%clk 0:02:58.7]} 2. d4 {[%clk 0:03:00.2]}
2... d5 {[%clk 0:02:59.3]} 3. Nc3 {[%clk 0:02:58.8]} 3... dxe4 {[%clk
0:02:58.3]} 4. Nxe4 {[%clk 0:02:59.7]} 4... Bd7 {[%clk 0:02:58.7]} 5. Nf3 {[%clk
0:02:59.5]} 5... Bc6 {[%clk 0:02:59.3]} 6. Bd3 {[%clk 0:02:59.2]} 6... Nd7
{[%clk 0:02:59.3]} 7. O-O {[%clk 0:02:57.8]} 7... Ngf6 {[%clk 0:02:59.7]} 8.
Nxf6+ {[%clk 0:02:57.2]} 8... Nxf6 {[%clk 0:02:58.9]} 9. Be3 {[%clk 0:02:56.9]}
9... Bxf3 {[%clk 0:02:44.5]} 10. Qxf3 {[%clk 0:02:57.8]} 10... c6 {[%clk
0:02:44.8]} 11. Rfe1 {[%clk 0:02:56.1]} 11... Qc7 {[%clk 0:02:41.7]} 12. Bf4
{[%clk 0:02:54.2]} 12... Bd6 {[%clk 0:02:41.2]} 13. Bg5 {[%clk 0:02:53.6]} 13...
Be7 {[%clk 0:02:35.5]} 14. Bf4 {[%clk 0:02:52.7]} 14... Bd6 {[%clk 0:02:34.8]}
15. Bg5 {[%clk 0:02:52.8]} 15... Be7 {[%clk 0:02:27]} 16. Bf4 {[%clk 0:02:52.7]}
16... Qa5 {[%clk 0:02:25.2]} 17. c3 {[%clk 0:02:44.8]} 17... O-O {[%clk
0:02:18.1]} 18. Be5 {[%clk 0:02:44.7]} 18... Nd7 {[%clk 0:02:07.3]} 19. Qh5
{[%clk 0:02:38.7]} 19... g6 {[%clk 0:02:04.5]} 20. Qh6 {[%clk 0:02:36.5]} 20...
Nxe5 {[%clk 0:01:55.3]} 21. Rxe5 {[%clk 0:02:37.4]} 21... Qc7 {[%clk 0:01:54.2]}
22. Rh5 {[%clk 0:02:35.7]} 1-0

[Event "*** Titled Tuesday Blitz"]
[Site "Chess.com"]
[Date "2020.05.05"]
[Round "7"]
[White "Gmedmundo"]
[Black "starworld123"]
[Result "1-0"]
[WhiteElo "2505"]
[BlackElo "2618"]
[TimeControl "180+1"]
[EndTime "11:14:44 PDT"]
[Termination "Gmedmundo won by resignation"]

1. e4 {[%clk 0:03:00.9]} 1... c5 {[%clk 0:02:59.9]} 2. Nf3 {[%clk 0:03:00.2]}
2... d6 {[%clk 0:03:00.3]} 3. d4 {[%clk 0:02:59.6]} 3... cxd4 {[%clk 0:03:01.2]}
4. Nxd4 {[%clk 0:02:59.7]} 4... Nf6 {[%clk 0:03:01.8]} 5. Nc3 {[%clk 0:02:59.6]}
5... a6 {[%clk 0:03:02.5]} 6. Be3 {[%clk 0:02:57.6]} 6... e5 {[%clk 0:03:02.9]}
7. Nb3 {[%clk 0:02:57.1]} 7... Be6 {[%clk 0:03:03.4]} 8. f3 {[%clk 0:02:56.2]}
8... Nbd7 {[%clk 0:03:04]} 9. Qd2 {[%clk 0:02:54.9]} 9... Be7 {[%clk 0:03:04.6]}
10. g4 {[%clk 0:02:53.7]} 10... b5 {[%clk 0:03:04.5]} 11. O-O-O {[%clk
0:02:52.6]} 11... b4 {[%clk 0:03:04.5]} 12. Nd5 {[%clk 0:02:51.4]} 12... Bxd5
{[%clk 0:03:04.9]} 13. exd5 {[%clk 0:02:50.8]} 13... Nb6 {[%clk 0:03:05.8]} 14.
Qxb4 {[%clk 0:02:34.4]} 14... Nfxd5 {[%clk 0:03:04.8]} 15. Bxb6 {[%clk
0:02:11.4]} 15... Nxb6 {[%clk 0:03:05.7]} 16. Kb1 {[%clk 0:02:04.1]} 16... O-O
{[%clk 0:03:03.8]} 17. h4 {[%clk 0:01:54.4]} 17... Qc7 {[%clk 0:02:59.3]} 18. g5
{[%clk 0:01:45.2]} 18... d5 {[%clk 0:02:50.7]} 19. Qg4 {[%clk 0:01:43.2]} 19...
d4 {[%clk 0:02:49.6]} 20. Bd3 {[%clk 0:01:36.8]} 20... Nd5 {[%clk 0:02:47.5]}
21. Qe4 {[%clk 0:01:35.3]} 1-0

[Event "*** Titled Tuesday Blitz"]
[Site "Chess.com"]
[Date "2020.05.05"]
[Round "7"]
[White "Opening_Prep"]
[Black "praveenb2002"]
[Result "0-1"]
[WhiteElo "2359"]
[BlackElo "2731"]
[TimeControl "180+1"]
[EndTime "11:15:02 PDT"]
[Termination "praveenb2002 won by checkmate"]

1. d4 {[%clk 0:03:00.9]} 1... d5 {[%clk 0:02:59.3]} 2. Nc3 {[%clk 0:02:59.3]}
2... Nf6 {[%clk 0:02:54]} 3. Bf4 {[%clk 0:02:59.2]} 3... e6 {[%clk 0:02:47]} 4.
e3 {[%clk 0:02:58.5]} 4... c5 {[%clk 0:02:46.4]} 5. Nb5 {[%clk 0:02:57]} 5...
Na6 {[%clk 0:02:46.1]} 6. c3 {[%clk 0:02:54.2]} 6... Be7 {[%clk 0:02:40.8]} 7.
h3 {[%clk 0:02:52.1]} 7... O-O {[%clk 0:02:40.9]} 8. Nf3 {[%clk 0:02:52.4]} 8...
Bd7 {[%clk 0:02:40.7]} 9. a4 {[%clk 0:02:51.5]} 9... Bxb5 {[%clk 0:02:19.7]} 10.
axb5 {[%clk 0:02:46.2]} 10... Nc7 {[%clk 0:02:19.5]} 11. dxc5 {[%clk 0:02:38.2]}
11... Bxc5 {[%clk 0:02:18.2]} 12. Be2 {[%clk 0:02:36.8]} 12... Bd6 {[%clk
0:02:18.1]} 13. Qd4 {[%clk 0:02:17.5]} 13... Ne4 {[%clk 0:02:09.8]} 14. Rxa7
{[%clk 0:02:08.8]} 14... Rxa7 {[%clk 0:01:58.1]} 15. Qxa7 {[%clk 0:02:09.7]}
15... Bxf4 {[%clk 0:01:58.3]} 16. exf4 {[%clk 0:02:08.7]} 16... Qa8 {[%clk
0:01:58.9]} 17. Qd4 {[%clk 0:01:52]} 17... Qa1+ {[%clk 0:01:55.9]} 18. Qd1
{[%clk 0:01:50]} 18... Qxb2 {[%clk 0:01:54.6]} 19. Bd3 {[%clk 0:01:28.1]} 19...
Qxf2# {[%clk 0:01:53.4]} 0-1

[Event "*** Titled Tuesday Blitz"]
[Site "Chess.com"]
[Date "2020.05.05"]
[Round "7"]
[White "InitiatingASC"]
[Black "silverback96"]
[Result "0-1"]
[WhiteElo "2308"]
[BlackElo "2137"]
[TimeControl "180+1"]
[EndTime "11:15:05 PDT"]
[Termination "silverback96 won by resignation"]

1. Nf3 {[%clk 0:03:00.9]} 1... c5 {[%clk 0:02:59.6]} 2. b3 {[%clk 0:03:00.9]}
2... d6 {[%clk 0:02:58.2]} 3. Bb2 {[%clk 0:03:01.2]} 3... e5 {[%clk 0:02:58.5]}
4. e3 {[%clk 0:03:00.9]} 4... Nc6 {[%clk 0:02:58.6]} 5. Be2 {[%clk 0:02:54.3]}
5... g6 {[%clk 0:02:57.8]} 6. O-O {[%clk 0:02:54.2]} 6... Bg7 {[%clk 0:02:57.8]}
7. c4 {[%clk 0:02:53.6]} 7... Nge7 {[%clk 0:02:55.9]} 8. d3 {[%clk 0:02:54]}
8... O-O {[%clk 0:02:56.3]} 9. Nbd2 {[%clk 0:02:54.2]} 9... h6 {[%clk
0:02:53.9]} 10. a3 {[%clk 0:02:54.4]} 10... Be6 {[%clk 0:02:52.3]} 11. Re1
{[%clk 0:02:51.3]} 11... d5 {[%clk 0:02:50.7]} 12. cxd5 {[%clk 0:02:50.6]} 12...
Qxd5 {[%clk 0:02:50.1]} 13. Rc1 {[%clk 0:02:46.8]} 13... b6 {[%clk 0:02:50.3]}
14. Qc2 {[%clk 0:02:46.8]} 14... Rfd8 {[%clk 0:02:49.5]} 15. Qb1 {[%clk
0:02:46.3]} 15... Rac8 {[%clk 0:02:49.5]} 16. Qa1 {[%clk 0:02:46.1]} 16... Na5
{[%clk 0:02:43.3]} 17. Bf1 {[%clk 0:02:41.5]} 17... Nxb3 {[%clk 0:02:42.1]} 18.
Nxb3 {[%clk 0:02:38.8]} 18... Qxb3 {[%clk 0:02:43]} 19. Bxe5 {[%clk 0:02:38.8]}
19... Bxe5 {[%clk 0:02:35.8]} 20. Nxe5 {[%clk 0:02:34]} 20... Nc6 {[%clk
0:02:26.8]} 21. Nxc6 {[%clk 0:02:20.2]} 21... Rxc6 {[%clk 0:02:27.7]} 22. Qf6
{[%clk 0:02:19.5]} 22... Rdc8 {[%clk 0:02:14.2]} 23. Rc3 {[%clk 0:02:15.4]}
23... Qd5 {[%clk 0:02:04.1]} 24. Qf4 {[%clk 0:02:10.5]} 24... Qd8 {[%clk
0:01:52.7]} 25. Qxh6 {[%clk 0:02:04.4]} 25... Qf6 {[%clk 0:01:50.2]} 26. Qf4
{[%clk 0:01:53.9]} 26... Qxc3 {[%clk 0:01:49.3]} 0-1

[Event "*** Titled Tuesday Blitz"]
[Site "Chess.com"]
[Date "2020.05.05"]
[Round "7"]
[White "DinaBelenkaya"]
[Black "czasnaszachy"]
[Result "1-0"]
[WhiteElo "2130"]
[BlackElo "2264"]
[TimeControl "180+1"]
[EndTime "11:15:09 PDT"]
[Termination "DinaBelenkaya won by resignation"]

1. e4 {[%clk 0:03:00.9]} 1... c5 {[%clk 0:02:41.6]} 2. Nf3 {[%clk 0:02:59.9]}
2... d6 {[%clk 0:02:41.8]} 3. Bb5+ {[%clk 0:02:57.5]} 3... Bd7 {[%clk
0:02:40.9]} 4. Bxd7+ {[%clk 0:02:54.5]} 4... Qxd7 {[%clk 0:02:41.8]} 5. c4
{[%clk 0:02:52.4]} 5... Nc6 {[%clk 0:02:42]} 6. Nc3 {[%clk 0:02:52.5]} 6... g6
{[%clk 0:02:41]} 7. d4 {[%clk 0:02:51.9]} 7... cxd4 {[%clk 0:02:40.4]} 8. Nxd4
{[%clk 0:02:52.4]} 8... Bg7 {[%clk 0:02:40.7]} 9. Be3 {[%clk 0:02:48.2]} 9...
Nf6 {[%clk 0:02:40.5]} 10. f3 {[%clk 0:02:46.7]} 10... O-O {[%clk 0:02:40.1]}
11. O-O {[%clk 0:02:46.8]} 11... Rac8 {[%clk 0:02:39.9]} 12. b3 {[%clk
0:02:38.4]} 12... Rfd8 {[%clk 0:02:09.4]} 13. Rc1 {[%clk 0:02:37.6]} 13... Ne8
{[%clk 0:02:05.4]} 14. Nd5 {[%clk 0:02:29.9]} 14... Nc7 {[%clk 0:02:03.5]} 15.
Nb5 {[%clk 0:02:15.5]} 15... Ne6 {[%clk 0:01:41.6]} 16. Nxa7 {[%clk 0:02:05.6]}
16... Nxa7 {[%clk 0:01:20.1]} 17. Bxa7 {[%clk 0:02:06.5]} 17... Qc6 {[%clk
0:01:08.1]} 18. Nxe7+ {[%clk 0:02:04.9]} 1-0